{"text_format":"1","workbook":"xlsx","n_sheets":5,"sheets":["Anleitung","1 Kind","2 Kinder","3 Kinder","4 Kinder"],"not_rendered":{"charts":0,"images":6,"macros":1,"external_links":0,"defined_names":59,"comments":0,"pivot_tables":0},"unopened":[],"bounds":{"document_bytes":16777216,"sheet_cells":100000,"rows_first":2000,"rows_last":500,"rows_between":2000,"halvings":0,"cell_chars":16384,"cell_head_chars":4096},"cells_cut":0,"cells_raw":0,"read":"whole","date_system":"1900"}

{"sheet":"Anleitung","index":0,"n_rows":0,"n_cols":0,"rows_kept":0,"cut":false,"hidden":false,"merged":[]}

{"sheet":"1 Kind","index":1,"n_rows":42,"n_cols":20,"rows_kept":42,"cut":false,"hidden":false,"merged":[[6,9,6,10],[13,10,18,10],[6,11,6,12],[7,11,12,12],[13,12,18,12],[0,0,0,20],[2,0,2,5],[2,6,2,13],[6,7,6,8],[33,0,33,20],[29,0,29,20],[27,0,27,20],[22,5,22,13],[6,2,6,4],[25,3,25,4],[12,2,12,4],[13,2,13,4],[7,5,12,6],[6,5,6,6],[7,2,7,4],[8,2,8,4],[41,7,41,13],[31,0,31,13],[10,2,10,4],[11,2,11,4],[18,2,18,4],[41,0,41,4],[16,2,16,4],[17,2,17,4],[40,0,40,4],[23,5,23,13],[37,0,37,5],[37,7,37,13],[38,0,38,5],[38,7,38,13],[36,0,36,5],[36,7,36,13],[34,0,34,5],[34,7,34,13],[35,0,35,5],[35,7,35,13],[9,2,9,4],[14,2,15,4],[13,6,18,6],[13,5,16,5],[13,13,18,13],[13,8,18,8],[13,7,16,7],[13,9,16,9],[13,11,16,11]]}
["U3 - Verbindliche Anmeldung zur Betreuung im Kindergarten Wuselnest"]
[]
["Name, Vorname des Kindes"]
[]
["hiermit melden wir unser Kind wie folgt verbindlich für die Betreuung im Kindergarten Wuselnest an:"]
[]
[null,null,null,null,null,"Mo",null,"Di",null,"Mi",null,"Do",null,"Fr"]
[null,null,"07:00:00"]
[null,null,null,null,null,null,null,null,null,null,null,null,null,null,false,false,false,true,false]
[]
[null,null,null,null,null,null,null,null,null,null,null,null,null,null,false,false,false,false,false]
[]
[null,null,"12:30:00"]
[null,null,"12:30:00",null,null,null,null,null,null,null,null,null,null,null,false,false,false,false,false]
[null,null,null,null,null,null,null,null,null,null,null,null,null,null,{"$f":"IF(O14=TRUE,1)","v":false},{"$f":"IF(P14=TRUE,1)","v":false},false,false,false,{"$f":"SUM(O15:S15)","v":0}]
[null,null,null,null,null,null,null,null,null,null,null,null,null,null,false,false,false,false,false]
[null,null,"15:00:00",null,null,null,null,null,null,null,null,null,null,null,{"$f":"IF(O16=TRUE,1)","v":false},{"$f":"IF(P16=TRUE,1)","v":false},false,false,false,{"$f":"SUM(O17:S17)","v":0}]
[]
[null,null,"16.30"]
[]
["Elternbeitrag:"]
[]
[null,null,439,null,471,"Basismodell 1 Kind U18 im Haushalt lebend"]
[{"$f":"T15","v":0},"x",49.5,"=",{"$f":"A24*C24","v":0},"GT 1"]
[{"$f":"T17","v":0},"x",75,"=",{"$f":"A25*C25","v":0},"GT 2"]
[null,null,null,{"$f":"SUM(E23+E24+E25)","v":471},null," /Monat"]
[]
["Erklärung zu den Modellen:"]
[]
["Basismodell ohne Mittagessen: Betreuung von 07:00 - 12:30 Uhr. \nBasismodell mit Mittagessen: Betreuung von 07:00 - 12:30 Uhr mit Mittagessen (muss separat über MensaMax dazugebucht werden).\nFolgende Baustine können von Montag bis Donnerstag dazugebucht werden:\nGT 1: Betreuung von 07:00 - 15:00 Uhr mit Mittagessen (muss separat über MensaMax dazugebucht werden) und Ruhezeit."]
[]
["GT 2: Betreuung von 07:00 - 16:30 Uhr mit Mittagessen (muss separat über MensaMax dazugebucht werden), Ruhezeit und Nachmittagsbetreuung.\n\nBitte beachten Sie, dass die Anmeldung verbindlich ist und nur zum 01.02. und 01.08. eines Jahres geändert werden kann."]
[]
["Hiermit ermächtige ich die Gemeinde Erlenmoos, die Elternbeiträge für die Betreuung im Kindergarten Wuselnest wiederkehrend mittels Lastschrift von meinem Konto einzuziehen. Zugleich weise ich mein Kreditinstitut an, die von der Gemeinde Erlenmoos auf mein Konto gezogene Lastschrift einzulösen. Ich kann innerhalb von acht Wochen, beginnend mit dem Belastungsdatum, die Erstattung des belasteten Betrags verlangen. Es gelten dabei die mit meinem Kreditinstitut vereinbarten Bedingungen."]
["Gläubiger-Identifikationsnummer",null,null,null,null,null,null,"DE 76 ZZZ 00000 40 21 21"]
["Mandatsreferenz (wird von der Gemeinde ausgefüllt)"]
["Kreditinstitut"]
["IBAN"]
["Kontoinhaber"]
[]
[]
["Datum",null,null,null,null,null,null,"Unterschrift Erziehungsberechtigter und Kontoinhaber"]

{"sheet":"2 Kinder","index":2,"n_rows":42,"n_cols":20,"rows_kept":42,"cut":false,"hidden":false,"merged":[[23,5,23,13],[25,3,25,4],[27,0,27,20],[29,0,29,20],[31,0,31,13],[13,8,18,8],[13,9,16,9],[41,0,41,4],[41,7,41,13],[33,0,33,20],[34,0,34,5],[34,7,34,13],[35,0,35,5],[35,7,35,13],[36,0,36,5],[36,7,36,13],[37,0,37,5],[37,7,37,13],[38,0,38,5],[38,7,38,13],[40,0,40,4],[18,2,18,4],[13,2,13,4],[13,5,16,5],[13,6,18,6],[13,7,16,7],[22,5,22,13],[7,2,7,4],[7,5,12,6],[7,11,12,12],[8,2,8,4],[9,2,9,4],[10,2,10,4],[11,2,11,4],[12,2,12,4],[13,10,18,10],[13,11,16,11],[13,12,18,12],[13,13,18,13],[14,2,15,4],[16,2,16,4],[17,2,17,4],[0,0,0,20],[2,0,2,5],[2,6,2,13],[6,2,6,4],[6,5,6,6],[6,7,6,8],[6,9,6,10],[6,11,6,12]]}
["U3 - Verbindliche Anmeldung zur Betreuung im Kindergarten Wuselnest"]
[]
["Name, Vorname des Kindes"]
[]
["hiermit melden wir unser Kind wie folgt verbindlich für die Betreuung im Kindergarten Wuselnest an:"]
[]
[null,null,null,null,null,"Mo",null,"Di",null,"Mi",null,"Do",null,"Fr"]
[null,null,"07:00:00"]
[null,null,null,null,null,null,null,null,null,null,null,null,null,null,true,false,false,false,false]
[]
[null,null,null,null,null,null,null,null,null,null,null,null,null,null,false,false,false,false,false]
[]
[null,null,"12:30:00"]
[null,null,"12:30:00",null,null,null,null,null,null,null,null,null,null,null,false,false,false,false,false]
[null,null,null,null,null,null,null,null,null,null,null,null,null,null,{"$f":"IF(O14=TRUE,1)","v":false},{"$f":"IF(P14=TRUE,1)","v":false},false,false,false,{"$f":"SUM(O15:S15)","v":0}]
[null,null,null,null,null,null,null,null,null,null,null,null,null,null,false,false,false,false,false]
[null,null,"15:00:00",null,null,null,null,null,null,null,null,null,null,null,{"$f":"IF(O16=TRUE,1)","v":false},{"$f":"IF(P16=TRUE,1)","v":false},false,false,false,{"$f":"SUM(O17:S17)","v":0}]
[]
[null,null,"16.30"]
[]
["Elternbeitrag:"]
[]
[null,null,350,null,{"$f":"C23","v":350},"Basismodell 2 Kinder U18 im Haushalt lebend"]
[{"$f":"T15","v":0},"x",36.75,"=",{"$f":"A24*C24","v":0},"GT 1"]
[{"$f":"T17","v":0},"x",55.75,"=",{"$f":"A25*C25","v":0},"GT 2"]
[null,null,null,{"$f":"SUM(E23+E24+E25)","v":350},null," /Monat"]
[]
["Erklärung zu den Modellen:"]
[]
["Basismodell ohne Mittagessen: Betreuung von 07:00 - 12:30 Uhr. \nBasismodell mit Mittagessen: Betreuung von 07:00 - 12:30 Uhr mit Mittagessen (muss separat über MensaMax dazugebucht werden).\nFolgende Baustine können von Montag bis Donnerstag dazugebucht werden:\nGT 1: Betreuung von 07:00 - 15:00 Uhr mit Mittagessen (muss separat über MensaMax dazugebucht werden) und Ruhezeit."]
[]
["GT 2: Betreuung von 07:00 - 16:30 Uhr mit Mittagessen (muss separat über MensaMax dazugebucht werden), Ruhezeit und Nachmittagsbetreuung.\n\nBitte beachten Sie, dass die Anmeldung verbindlich ist und nur zum 01.02. und 01.08. eines Jahres geändert werden kann."]
[]
["Hiermit ermächtige ich die Gemeinde Erlenmoos, die Elternbeiträge für die Betreuung im Kindergarten Wuselnest wiederkehrend mittels Lastschrift von meinem Konto einzuziehen. Zugleich weise ich mein Kreditinstitut an, die von der Gemeinde Erlenmoos auf mein Konto gezogene Lastschrift einzulösen. Ich kann innerhalb von acht Wochen, beginnend mit dem Belastungsdatum, die Erstattung des belasteten Betrags verlangen. Es gelten dabei die mit meinem Kreditinstitut vereinbarten Bedingungen."]
["Gläubiger-Identifikationsnummer",null,null,null,null,null,null,"DE 76 ZZZ 00000 40 21 21"]
["Mandatsreferenz (wird von der Gemeinde ausgefüllt)"]
["Kreditinstitut"]
["IBAN"]
["Kontoinhaber"]
[]
[]
["Datum",null,null,null,null,null,null,"Unterschrift Erziehungsberechtigter und Kontoinhaber"]

{"sheet":"3 Kinder","index":3,"n_rows":42,"n_cols":20,"rows_kept":42,"cut":false,"hidden":false,"merged":[[23,5,23,13],[25,3,25,4],[27,0,27,20],[29,0,29,20],[31,0,31,13],[13,8,18,8],[13,9,16,9],[41,0,41,4],[41,7,41,13],[33,0,33,20],[34,0,34,5],[34,7,34,13],[35,0,35,5],[35,7,35,13],[36,0,36,5],[36,7,36,13],[37,0,37,5],[37,7,37,13],[38,0,38,5],[38,7,38,13],[40,0,40,4],[18,2,18,4],[13,2,13,4],[13,5,16,5],[13,6,18,6],[13,7,16,7],[22,5,22,13],[7,2,7,4],[7,5,12,6],[7,11,12,12],[8,2,8,4],[9,2,9,4],[10,2,10,4],[11,2,11,4],[12,2,12,4],[13,10,18,10],[13,11,16,11],[13,12,18,12],[13,13,18,13],[14,2,15,4],[16,2,16,4],[17,2,17,4],[0,0,0,20],[2,0,2,5],[2,6,2,13],[6,2,6,4],[6,5,6,6],[6,7,6,8],[6,9,6,10],[6,11,6,12]]}
["U3 - Verbindliche Anmeldung zur Betreuung im Kindergarten Wuselnest"]
[]
["Name, Vorname des Kindes"]
[]
["hiermit melden wir unser Kind wie folgt verbindlich für die Betreuung im Kindergarten Wuselnest an:"]
[]
[null,null,null,null,null,"Mo",null,"Di",null,"Mi",null,"Do",null,"Fr"]
[null,null,"07:00:00"]
[null,null,null,null,null,null,null,null,null,null,null,null,null,null,false,false,false,false,false]
[]
[null,null,null,null,null,null,null,null,null,null,null,null,null,null,false,false,false,false,false]
[]
[null,null,"12:30:00"]
[null,null,"12:30:00",null,null,null,null,null,null,null,null,null,null,null,false,false,false,false,false]
[null,null,null,null,null,null,null,null,null,null,null,null,null,null,{"$f":"IF(O14=TRUE,1)","v":false},{"$f":"IF(P14=TRUE,1)","v":false},false,false,false,{"$f":"SUM(O15:S15)","v":0}]
[null,null,null,null,null,null,null,null,null,null,null,null,null,null,false,false,false,false,false]
[null,null,"15:00:00",null,null,null,null,null,null,null,null,null,null,null,{"$f":"IF(O16=TRUE,1)","v":false},{"$f":"IF(P16=TRUE,1)","v":false},false,false,false,{"$f":"SUM(O17:S17)","v":0}]
[]
[null,null,"16.30"]
[]
["Elternbeitrag:"]
[]
[null,null,237,null,{"$f":"C23","v":237},"Basismodell 3 Kinder U18 im Haushalt lebend"]
[{"$f":"T15","v":0},"x",24.75,"=",{"$f":"A24*C24","v":0},"GT 1"]
[{"$f":"T17","v":0},"x",37.5,"=",{"$f":"A25*C25","v":0},"GT 2"]
[null,null,null,{"$f":"SUM(E23+E24+E25)","v":237},null," /Monat"]
[]
["Erklärung zu den Modellen:"]
[]
["Basismodell ohne Mittagessen: Betreuung von 07:00 - 12:30 Uhr. \nBasismodell mit Mittagessen: Betreuung von 07:00 - 12:30 Uhr mit Mittagessen (muss separat über MensaMax dazugebucht werden).\nFolgende Baustine können von Montag bis Donnerstag dazugebucht werden:\nGT 1: Betreuung von 07:00 - 15:00 Uhr mit Mittagessen (muss separat über MensaMax dazugebucht werden) und Ruhezeit."]
[]
["GT 2: Betreuung von 07:00 - 16:30 Uhr mit Mittagessen (muss separat über MensaMax dazugebucht werden), Ruhezeit und Nachmittagsbetreuung.\n\nBitte beachten Sie, dass die Anmeldung verbindlich ist und nur zum 01.02. und 01.08. eines Jahres geändert werden kann."]
[]
["Hiermit ermächtige ich die Gemeinde Erlenmoos, die Elternbeiträge für die Betreuung im Kindergarten Wuselnest wiederkehrend mittels Lastschrift von meinem Konto einzuziehen. Zugleich weise ich mein Kreditinstitut an, die von der Gemeinde Erlenmoos auf mein Konto gezogene Lastschrift einzulösen. Ich kann innerhalb von acht Wochen, beginnend mit dem Belastungsdatum, die Erstattung des belasteten Betrags verlangen. Es gelten dabei die mit meinem Kreditinstitut vereinbarten Bedingungen."]
["Gläubiger-Identifikationsnummer",null,null,null,null,null,null,"DE 76 ZZZ 00000 40 21 21"]
["Mandatsreferenz (wird von der Gemeinde ausgefüllt)"]
["Kreditinstitut"]
["IBAN"]
["Kontoinhaber"]
[]
[]
["Datum",null,null,null,null,null,null,"Unterschrift Erziehungsberechtigter und Kontoinhaber"]

{"sheet":"4 Kinder","index":4,"n_rows":42,"n_cols":20,"rows_kept":42,"cut":false,"hidden":false,"merged":[[23,5,23,13],[25,3,25,4],[27,0,27,20],[29,0,29,20],[31,0,31,13],[13,8,18,8],[13,9,16,9],[41,0,41,4],[41,7,41,13],[33,0,33,20],[34,0,34,5],[34,7,34,13],[35,0,35,5],[35,7,35,13],[36,0,36,5],[36,7,36,13],[37,0,37,5],[37,7,37,13],[38,0,38,5],[38,7,38,13],[40,0,40,4],[18,2,18,4],[13,2,13,4],[13,5,16,5],[13,6,18,6],[13,7,16,7],[22,5,22,13],[7,2,7,4],[7,5,12,6],[7,11,12,12],[8,2,8,4],[9,2,9,4],[10,2,10,4],[11,2,11,4],[12,2,12,4],[13,10,18,10],[13,11,16,11],[13,12,18,12],[13,13,18,13],[14,2,15,4],[16,2,16,4],[17,2,17,4],[0,0,0,20],[2,0,2,5],[2,6,2,13],[6,2,6,4],[6,5,6,6],[6,7,6,8],[6,9,6,10],[6,11,6,12]]}
["U3 - Verbindliche Anmeldung zur Betreuung im Kindergarten Wuselnest"]
[]
["Name, Vorname des Kindes"]
[]
["hiermit melden wir unser Kind wie folgt verbindlich für die Betreuung im Kindergarten Wuselnest an:"]
[]
[null,null,null,null,null,"Mo",null,"Di",null,"Mi",null,"Do",null,"Fr"]
[null,null,"07:00:00"]
[null,null,null,null,null,null,null,null,null,null,null,null,null,null,false,false,false,false,false]
[]
[null,null,null,null,null,null,null,null,null,null,null,null,null,null,false,false,false,false,false]
[]
[null,null,"12:30:00"]
[null,null,"12:30:00",null,null,null,null,null,null,null,null,null,null,null,false,false,false,false,false]
[null,null,null,null,null,null,null,null,null,null,null,null,null,null,{"$f":"IF(O14=TRUE,1)","v":false},{"$f":"IF(P14=TRUE,1)","v":false},false,false,false,{"$f":"SUM(O15:S15)","v":0}]
[null,null,null,null,null,null,null,null,null,null,null,null,null,null,false,false,false,false,false]
[null,null,"15:00:00",null,null,null,null,null,null,null,null,null,null,null,{"$f":"IF(O16=TRUE,1)","v":false},{"$f":"IF(P16=TRUE,1)","v":false},false,false,false,{"$f":"SUM(O17:S17)","v":0}]
[]
[null,null,"16.30"]
[]
["Elternbeitrag:"]
[]
[null,null,94,null,{"$f":"C23","v":94},"Basismodell 4 Kinder oder mehr U18 im Haushalt lebend"]
[{"$f":"T15","v":0},"x",9.75,"=",{"$f":"A24*C24","v":0},"GT 1"]
[{"$f":"T17","v":0},"x",14.75,"=",{"$f":"A25*C25","v":0},"GT 2"]
[null,null,null,{"$f":"SUM(E23+E24+E25)","v":94},null," /Monat"]
[]
["Erklärung zu den Modellen:"]
[]
["Basismodell ohne Mittagessen: Betreuung von 07:00 - 12:30 Uhr. \nBasismodell mit Mittagessen: Betreuung von 07:00 - 12:30 Uhr mit Mittagessen (muss separat über MensaMax dazugebucht werden).\nFolgende Baustine können von Montag bis Donnerstag dazugebucht werden:\nGT 1: Betreuung von 07:00 - 15:00 Uhr mit Mittagessen (muss separat über MensaMax dazugebucht werden) und Ruhezeit."]
[]
["GT 2: Betreuung von 07:00 - 16:30 Uhr mit Mittagessen (muss separat über MensaMax dazugebucht werden), Ruhezeit und Nachmittagsbetreuung.\n\nBitte beachten Sie, dass die Anmeldung verbindlich ist und nur zum 01.02. und 01.08. eines Jahres geändert werden kann."]
[]
["Hiermit ermächtige ich die Gemeinde Erlenmoos, die Elternbeiträge für die Betreuung im Kindergarten Wuselnest wiederkehrend mittels Lastschrift von meinem Konto einzuziehen. Zugleich weise ich mein Kreditinstitut an, die von der Gemeinde Erlenmoos auf mein Konto gezogene Lastschrift einzulösen. Ich kann innerhalb von acht Wochen, beginnend mit dem Belastungsdatum, die Erstattung des belasteten Betrags verlangen. Es gelten dabei die mit meinem Kreditinstitut vereinbarten Bedingungen."]
["Gläubiger-Identifikationsnummer",null,null,null,null,null,null,"DE 76 ZZZ 00000 40 21 21"]
["Mandatsreferenz (wird von der Gemeinde ausgefüllt)"]
["Kreditinstitut"]
["IBAN"]
["Kontoinhaber"]
[]
[]
["Datum",null,null,null,null,null,null,"Unterschrift Erziehungsberechtigter und Kontoinhaber"]